bitfinex-derivatives/quotes_SOLF0:USTF0_20250416
["timestamp","ask_amount","ask_price","bid_price","bid_amount"]
[1744810907057,26.33047391,125.89,125.79,370.5781]
[1744810907258,26.33047391,125.89,125.84,0.05160146]
[1744810909553,26.33047391,125.87,125.84,0.05160146]
[1744810909861,26.33047391,125.87,125.79,362.0]
[1744810910061,26.33047391,125.87,125.76,4.3071]
[1744810910062,26.33047391,125.87,125.77,7.9512]
[1744810910462,26.33047391,125.87,125.8,7.9496]
[1744810910857,26.33047391,125.87,125.76,35.01967391]
[1744810911063,26.38156573,125.85,125.82,0.0593586]
[1744810911253,26.33047391,125.83,125.76,8.6892]
[1744810911863,26.33047391,125.83,125.76,16.6411]
[1744810912063,26.33047391,125.83,125.76,8.6892]
[1744810912369,0.05166204,125.81,125.78,0.06012769]
[1744810915766,8.00096204,125.81,125.78,0.06012769]
[1744810916566,0.05166204,125.81,125.78,0.06012769]
[1744810917062,26.38213595,125.81,125.78,0.06012769]
[1744810917263,7.9503,125.79,125.78,0.06012769]
[1744810917868,7.9499,125.8,125.78,0.06012769]
[1744810918069,0.05166204,125.81,125.78,0.06012769]
[1744810918269,7.9498,125.8,125.78,0.06012769]
[1744810919368,0.05166204,125.81,125.78,0.06012769]
[1744810921069,7.9502,125.8,125.78,0.06012769]
[1744810921971,8.00116204,125.81,125.78,0.06012769]
[1744810922163,0.05166204,125.81,125.78,0.06012769]
[1744810922363,7.9503,125.79,125.78,0.06012769]
[1744810922569,7.9503,125.79,125.78,0.00914958]
[1744810922881,7.9548,125.72,125.66,26.33047391]
[1744810923068,26.33047391,125.76,125.67,8.4115]
[1744810923376,26.98177391,125.78,125.67,8.4115]
[1744810923868,7.9545,125.73,125.71,0.05333677]
[1744810924463,0.05473763,125.74,125.71,0.05333677]
[1744810929476,0.05473763,125.74,125.71,16.48634342]
[1744810929877,0.05473763,125.74,125.71,0.05333677]
[1744810932782,0.05473763,125.74,125.71,8.00873677]
[1744810933078,0.05473763,125.74,125.71,0.05333677]
[1744810934981,0.05473763,125.74,125.71,16.48634342]
[1744810935372,572.54,125.83,125.76,16.43300665]
[1744810935572,16.43300665,125.86,125.73,16.43300665]
[1744810935573,16.43300665,125.88,125.8,16.43300665]
[1744810936384,0.05253121,125.85,125.83,0.05020492]
[1744810942085,7.9438,125.9,125.84,7.9469]
[1744810942285,1.5880578,125.94,125.83,26.23310083]
[1744810942481,1.5880578,125.94,125.86,26.23310083]
[1744810942678,572.54,125.95,125.87,8.4811]
[1744810943080,0.05353153,125.92,125.9,0.05879686]
[1744810943484,7.99593153,125.92,125.9,0.05879686]
[1744810943685,0.05353153,125.92,125.9,0.05879686]
[1744810944082,7.9428,125.91,125.9,0.05879686]
[1744810944381,0.05353153,125.92,125.84,26.23310083]
[1744810944578,598.77310083,125.95,125.86,7.9454]
[1744810944881,598.77310083,125.95,125.84,26.23310083]
[1744810945084,7.9437,125.9,125.84,34.17990083]
[1744810945284,0.06080752,125.88,125.86,0.05071137]
[1744810945783,572.54,125.95,125.86,0.05071137]
[1744810945984,572.54,125.95,125.87,26.23310083]
[1744810946183,26.23310083,126.0,125.87,26.23310083]
[1744810946385,1.4596794,125.99,125.87,26.23310083]
[1744810946682,26.23310083,126.0,125.87,26.23310083]
[1744810946981,0.05045473,125.95,125.92,0.06129661]
[1744810947178,0.05045473,125.95,125.88,4.3132]
[1744810947387,1.45959868,125.99,125.92,0.05100941]
[1744810947580,0.05298063,125.93,125.92,0.05100941]
[1744810947780,0.05361719,125.94,125.92,0.05100941]
[1744810948781,1.38199436,126.01,125.92,0.05100941]
[1744810948981,26.23310083,126.02,125.92,26.23310083]
[1744810949378,26.23310083,126.02,125.93,7.9412]
[1744810949782,7.9381,125.99,125.93,7.9412]
[1744810949985,26.23310083,126.02,125.95,0.05088489]
[1744810950582,26.23310083,126.0,125.95,0.05088489]
[1744810950784,26.23310083,126.0,125.9,34.81240083]
[1744810950984,7.939,125.97,125.96,0.05050858]
[1744810951583,26.23310083,125.98,125.88,4.3132]
[1744810951784,26.23310083,125.96,125.85,4.0933]
[1744810952184,26.23310083,125.96,125.88,7.9443]
[1744810952385,26.23310083,125.96,125.85,4.0933]
[1744810952587,7.9418,125.93,125.87,7.9448]
[1744810952784,0.05239182,125.92,125.89,0.05283041]
[1744810953385,7.99459182,125.92,125.89,0.05283041]
[1744810954184,0.05239182,125.92,125.89,0.05283041]
[1744810955186,0.05239182,125.92,125.89,7.99673041]
[1744810955587,1.38235119,125.99,125.89,26.28593124]
[1744810955786,15.8726,126.02,125.89,26.28593124]
[1744810955787,42.10570083,126.02,125.9,4.2904]
[1744810955987,7.9401,125.96,125.9,4.2904]
[1744810956287,7.9401,125.96,125.91,7.9424]
[1744810956789,43.48769519,126.02,125.92,0.05960355]
[1744810957094,43.48769519,126.02,125.9,4.2904]
[1744810957293,7.9388,125.98,125.96,0.06079718]
[1744810957490,27.61509519,126.02,125.96,0.06079718]
[1744810957893,7.939,125.97,125.96,0.06079718]
[1744810958291,27.61509519,126.02,125.96,0.06079718]
[1744810958492,7.939,125.97,125.96,0.06079718]
[1744810958691,27.61509519,126.02,125.96,0.06079718]
[1744810958886,1.38199436,126.02,125.96,0.06079718]
[1744810959092,7.9368,126.01,125.96,0.06079718]
[1744810959293,7.9368,126.01,125.93,26.23310083]
[1744810959494,7.9368,126.01,125.97,0.05473143]
[1744810959688,572.18,126.05,125.97,0.05473143]
[1744810959892,26.23310083,126.07,125.97,26.23310083]
[1744810960098,7.9356,126.03,126.0,0.05692385]
[1744810960294,26.23310083,126.07,126.0,0.05692385]
[1744810960498,26.23310083,126.09,126.0,0.05692385]
[1744810960688,26.23310083,126.09,125.97,26.23310083]
[1744810960892,26.23310083,126.09,126.03,0.05734576]
[1744810961398,7.9346,126.04,126.03,0.05734576]
[1744810963998,7.9343,126.05,126.03,0.05734576]
[1744810964197,1.38130867,126.08,126.03,0.05734576]
[1744810964598,7.9346,126.04,126.03,0.05734576]
[1744810964991,1.38130867,126.08,126.03,0.05734576]
[1744810965195,571.92,126.12,126.03,0.05734576]
[1744810965397,27.61421763,126.11,126.01,7.9364]
[1744810965595,9.38874399,126.11,126.06,0.05518742]
[1744810965896,571.92,126.12,126.06,0.05518742]
[1744810966093,7.9316,126.09,126.06,0.05518742]
[1744810966293,26.23310083,126.08,125.99,366.1603]
[1744810966802,7.9342,126.05,125.99,366.1603]
[1744810967001,26.23310083,126.08,125.99,374.0977]
[1744810967300,7.9338,126.06,125.99,366.1603]
[1744810967499,0.05960413,126.05,126.02,0.05283463]
[1744810967898,7.99390413,126.05,126.02,0.05283463]
[1744810968501,7.9346,126.04,126.02,0.05283463]
[1744810968702,0.05960413,126.05,126.02,0.05283463]
[1744810969605,7.99390413,126.05,126.02,0.05283463]
[1744810970004,0.05960413,126.05,126.02,0.05283463]
[1744810970708,7.935,126.04,126.02,0.05283463]
[1744810970908,0.05960413,126.05,126.02,0.05283463]
[1744810971111,7.99390413,126.05,126.02,0.05283463]
[1744810971603,0.05960413,126.05,126.02,0.05283463]
[1744810975110,7.9352,126.03,126.02,0.05283463]
[1744810976006,0.05960413,126.05,126.02,0.05283463]
[1744810976708,7.9349,126.04,126.02,0.05283463]
[1744810977906,7.99400413,126.05,126.02,0.05283463]
[1744810978112,0.05960413,126.05,126.02,0.05283463]
[1744810978715,0.27996,126.11,126.02,0.05283463]
[1744810978911,0.27996,126.11,126.01,26.23310083]
[1744810979110,7.933,126.07,126.01,7.9362]
[1744810979311,26.23310083,126.1,125.99,388.23310083]
[1744810979812,0.27996,126.11,126.03,0.05232484]
[1744810980006,0.27996,126.11,126.02,26.23310083]
[1744810980210,0.27996,126.11,126.06,0.06083292]
[1744810981113,7.9311,126.1,126.06,0.06083292]
[1744810981315,0.27996,126.11,126.06,0.06083292]
[1744810982618,8.21066,126.11,126.06,0.06083292]
[1744810982813,0.27996,126.11,126.06,0.06083292]
[1744810983016,26.23310083,126.1,126.06,0.06083292]
[1744810983517,0.27996,126.11,126.06,0.06083292]
[1744810984115,0.27996,126.11,126.06,7.99413292]
[1744810984316,0.27996,126.11,126.06,0.06083292]
[1744810984712,8.21066,126.11,126.06,0.06083292]
[1744810985213,0.27996,126.11,126.06,0.06083292]
[1744810985410,7.9313,126.1,126.06,0.06083292]
[1744810985615,0.27996,126.11,126.06,0.06083292]
[1744810985813,7.9312,126.1,126.06,0.06083292]
[1744810986017,0.27996,126.11,126.06,0.06083292]
[1744810986316,0.27996,126.11,126.06,7.99373292]
[1744810986522,8.21046,126.11,126.06,7.99373292]
[1744810986819,597.53310083,126.19,126.08,26.23310083]
[1744810987012,1.45744108,126.18,126.09,8.1709]
[1744810987217,1.45744108,126.18,126.12,0.05755383]
[1744810987411,7.9286,126.14,126.12,0.05755383]
[1744810987814,572.67999405,126.19,126.12,0.05755383]
[1744810988016,571.3,126.19,126.12,0.05755383]
[1744810988211,0.7048,126.2,126.12,0.05755383]
[1744810988411,74.33557352,126.23,126.14,7.9282]
[1744810988612,74.33557352,126.23,126.15,0.05498836]
[1744810988816,74.33557352,126.23,126.15,4.1128]
[1744810989012,26.23310083,126.2,126.1,392.32860083]
[1744810989216,26.23310083,126.2,126.18,0.05619612]
[1744810989414,74.33557352,126.23,126.18,0.05847882]
[1744810989819,26.23310083,126.22,126.18,0.05847882]
[1744810990019,7.9251,126.19,126.18,0.05847882]
[1744810990222,26.23310083,126.2,126.11,4.1128]
[1744810990622,7.9261,126.18,126.11,4.1128]
[1744810990821,26.23310083,126.22,126.11,4.1128]
[1744810991126,7.9253,126.19,126.11,4.1128]
[1744810991319,0.053554,126.18,126.15,0.05952478]
[1744810992023,26.28665483,126.18,126.15,0.05952478]
[1744810992220,7.9286,126.14,126.1,366.0955]
[1744810992416,7.9286,126.14,126.1,4.0955]
[1744810993022,571.1,126.19,126.1,4.0955]
[1744810993023,26.23310083,126.16,126.1,4.0955]
[1744810993218,0.05273194,126.14,126.1,4.0955]
[1744810993424,7.9291,126.13,126.12,0.05057455]
[1744810993724,27.69104201,126.13,126.01,4.2605]
[1744810994025,26.23310083,126.1,126.01,8.626]
[1744810994722,0.05760693,126.07,126.04,0.05403157]
[1744810995120,7.9339,126.05,126.04,0.05403157]
[1744810995316,26.23310083,126.06,125.97,4.1683]
[1744810995518,26.23310083,126.06,125.98,8.626]
[1744810996025,26.23310083,126.04,125.93,99.9797825]
[1744810996223,26.23310083,126.02,125.94,4.3655]
[1744810996422,0.05813473,126.0,125.97,0.05375484]
[1744810996624,7.9382,125.99,125.97,0.05375484]
[1744810996827,0.05813473,126.0,125.97,0.05375484]
[1744810999333,7.99543473,126.0,125.97,0.05375484]
[1744810999532,0.05813473,126.0,125.97,0.05375484]
[1744810999931,7.9378,125.99,125.97,0.05375484]
[1744811000232,0.05813473,126.0,125.97,0.05375484]
[1744811000433,7.9384,125.98,125.97,0.05375484]
[1744811001036,0.05813473,126.0,125.97,0.05375484]
[1744811002038,571.16,126.03,125.97,0.05375484]
[1744811002337,597.59310083,126.09,125.97,26.28685567]
[1744811002529,597.59310083,126.09,125.97,26.23310083]
[1744811003138,0.05997097,126.04,126.02,0.05299009]
[1744811003439,0.05586167,126.04,126.02,0.05299009]
[1744811003729,571.36,126.09,126.02,7.99299009]
[1744811003926,571.36,126.09,126.03,26.23310083]
[1744811004131,571.36,126.09,126.0,8.3911]
[1744811004335,26.23310083,126.07,126.0,8.3911]
[1744811004735,0.05565108,126.05,126.02,0.05386931]
[1744811004932,7.935,126.04,126.02,0.05386931]
[1744811005133,0.05565108,126.05,126.02,0.05386931]
[1744811005537,7.9346,126.04,126.02,0.05386931]
[1744811005733,0.05565108,126.05,126.02,0.05386931]
[1744811006031,26.23310083,126.03,125.96,4.1527]
[1744811006233,26.23310083,126.05,125.96,4.1527]
[1744811007028,7.9374,126.0,125.99,0.05148341]
[1744811007227,7.9374,126.0,125.96,4.1527]
[1744811007228,26.23310083,126.03,125.96,4.1527]
[1744811007430,0.05947207,126.01,125.98,0.05016046]
[1744811007634,7.9377,125.99,125.98,0.05016046]
[1744811008034,0.05947207,126.01,125.98,0.05016046]
[1744811008236,7.9373,126.0,125.98,0.05016046]
[1744811009132,0.05947207,126.01,125.98,0.05016046]
[1744811012234,26.2925729,126.01,125.98,0.05016046]
[1744811012436,597.7125729,126.01,125.98,0.05016046]
[1744811012634,571.47947207,126.01,125.98,0.05016046]
[1744811012830,0.05947207,126.01,125.98,0.05016046]
[1744811014735,7.9377,125.99,125.98,0.05016046]
[1744811015432,7.9395,125.97,125.92,4.2848]
[1744811015832,26.23310083,125.99,125.92,4.2848]
[1744811016037,26.23310083,126.07,125.91,8.3458]
[1744811016038,26.23310083,125.97,125.91,8.3458]
[1744811016243,26.23310083,125.99,125.91,8.3458]
[1744811016646,0.05695858,125.96,125.94,0.0520271]
[1744811017139,7.9402,125.95,125.94,0.0520271]
[1744811017845,0.05695858,125.96,125.89,4.3165]
[1744811018144,26.23310083,125.97,125.89,4.3165]
[1744811018342,0.6489,125.99,125.89,4.3165]
[1744811018343,26.23310083,125.95,125.89,4.3165]
[1744811018642,26.23310083,125.95,125.88,4.305]
[1744811018835,0.05428694,125.93,125.9,0.05387548]
[1744811019343,7.9425,125.92,125.9,0.05387548]
[1744811019544,0.05428694,125.93,125.9,0.05387548]
[1744811020445,7.9425,125.92,125.9,0.05387548]
[1744811020743,0.05428694,125.93,125.9,0.05387548]
[1744811021641,7.9428,125.91,125.9,0.05387548]
[1744811023744,0.05428694,125.93,125.9,0.05387548]
[1744811025345,26.28738777,125.93,125.9,0.05387548]
[1744811025949,0.05428694,125.93,125.9,0.05387548]
[1744811026347,7.99598694,125.93,125.9,0.05387548]
[1744811026549,0.05428694,125.93,125.9,0.05387548]
[1744811027443,7.99608694,125.93,125.9,0.05387548]
[1744811028243,0.05428694,125.93,125.9,0.05387548]
[1744811029450,7.99598694,125.93,125.9,0.05387548]
[1744811029652,26.28738777,125.93,125.9,0.05387548]
[1744811030551,7.9428,125.91,125.9,0.05387548]
[1744811030947,0.05428694,125.93,125.9,0.05387548]
[1744811031543,26.28738777,125.93,125.9,0.05387548]
[1744811032350,7.9428,125.91,125.9,0.05387548]
[1744811032848,0.05428694,125.93,125.9,0.05387548]
[1744811033054,26.23310083,125.92,125.9,0.05387548]
[1744811033456,7.9428,125.91,125.9,0.05387548]
[1744811035655,7.9423,125.92,125.9,0.05387548]
[1744811035956,0.05428694,125.93,125.9,0.05387548]
[1744811036255,7.9421,125.92,125.9,0.05387548]
[1744811036656,0.05428694,125.93,125.9,0.05387548]
[1744811036955,7.9421,125.92,125.9,0.05387548]
[1744811037155,0.05428694,125.93,125.9,0.05387548]
[1744811037355,26.23310083,125.92,125.9,0.05387548]
[1744811037853,598.15310083,125.92,125.84,366.1559]
[1744811038046,26.23310083,125.89,125.82,8.5754]
[1744811038251,7.9464,125.86,125.82,8.5754]
[1744811038558,26.23310083,125.89,125.82,8.5754]
[1744811038747,7.9454,125.87,125.82,8.5754]
[1744811038947,0.05488496,125.87,125.84,0.05523789]
[1744811042961,8.00068496,125.87,125.84,0.05523789]
[1744811043259,0.05488496,125.87,125.84,0.05523789]
[1744811043562,571.92,125.92,125.84,0.05523789]
[1744811043761,571.92,125.92,125.83,26.23310083]
[1744811043959,571.92,125.92,125.87,7.9452]
[1744811044162,571.92,125.92,125.88,8.4241]
[1744811044663,26.2837854,125.91,125.82,362.0]
[1744811044862,26.23310083,125.91,125.83,8.2433]
[1744811045063,571.92,125.92,125.83,8.2433]
[1744811045259,26.23310083,125.91,125.83,8.2433]
[1744811045455,7.9456,125.87,125.83,8.2433]
[1744811045660,26.23310083,125.89,125.83,8.2433]
[1744811045863,0.05020938,125.86,125.84,0.05573134]
[1744811046062,7.9466,125.85,125.84,0.05573134]
[1744811046366,0.05020938,125.86,125.84,0.05573134]
[1744811047263,7.9466,125.85,125.84,0.05573134]
[1744811047861,7.99640938,125.86,125.84,0.05573134]
[1744811048061,0.05020938,125.86,125.84,0.05573134]
[1744811048767,7.9466,125.85,125.84,0.05573134]
[1744811049061,0.05020938,125.86,125.84,0.05573134]
[1744811051773,7.99620938,125.86,125.84,0.05573134]
[1744811052574,7.9466,125.85,125.84,0.05573134]
[1744811053270,7.9466,125.85,125.84,3.134e-05]
[1744811053472,26.28331021,125.86,125.77,4.2602]
[1744811053668,26.23310083,125.86,125.77,4.2602]
[1744811053869,7.9496,125.81,125.77,4.2602]
[1744811054576,0.05101525,125.8,125.78,0.05723273]
[1744811055278,26.23310083,125.88,125.78,0.05723273]
[1744811055475,571.92,125.92,125.8,26.23310083]
[1744811055675,7.9466,125.85,125.78,26.23310083]
[1744811056274,7.9466,125.85,125.81,7.9487]
[1744811056571,0.05153278,125.83,125.82,4.1563]
[1744811056777,26.23310083,125.9,125.82,4.1563]
[1744811056974,7.9474,125.84,125.82,4.1563]
[1744811057173,26.23310083,125.9,125.82,4.1563]
[1744811057780,0.05445295,125.87,125.85,0.05012708]
[1744811058379,7.9459,125.86,125.85,0.05012708]
[1744811058884,26.28755378,125.87,125.77,366.2602]
[1744811059071,26.23310083,125.85,125.77,8.3433]
[1744811059472,26.23310083,125.87,125.77,8.3433]
[1744811059879,0.05183835,125.83,125.81,0.05875974]
[1744811060579,8.00003835,125.83,125.81,0.05875974]
[1744811060778,0.05183835,125.83,125.81,0.05875974]
[1744811064875,26.23310083,125.91,125.81,0.05875974]
[1744811065077,571.92,125.92,125.81,26.23310083]
[1744811065280,571.92,125.92,125.83,26.23310083]
[1744811065482,7.9436,125.9,125.85,7.9464]
[1744811065684,571.92,125.92,125.84,4.2726]
[1744811066075,0.05947023,125.89,125.87,0.05400884]
[1744811067075,8.00387023,125.89,125.87,0.05400884]
[1744811067877,7.9447,125.88,125.87,0.05400884]
[1744811069682,0.05947023,125.89,125.87,0.05400884]
[1744811072376,8.00357023,125.89,125.87,0.05400884]
[1744811072574,0.05947023,125.89,125.87,0.05400884]
[1744811074685,26.29257106,125.89,125.87,0.05400884]
[1744811075388,7.9447,125.88,125.87,0.05400884]
[1744811075882,26.29257106,125.89,125.8,8.4126]
[1744811076082,26.23310083,125.89,125.8,8.4126]
[1744811076687,26.23310083,125.89,125.8,12.8564]
[1744811076985,0.05299089,125.86,125.83,0.05634002]
[1744811077179,7.99929089,125.86,125.83,0.05634002]
[1744811077487,0.05299089,125.86,125.83,0.05634002]
[1744811077685,7.9472,125.84,125.83,0.05634002]
[1744811078182,0.05299089,125.86,125.83,0.05634002]
[1744811078183,7.9468,125.85,125.83,0.05634002]
[1744811078688,7.9472,125.84,125.83,0.05634002]
[1744811078990,0.05299089,125.86,125.83,0.05634002]
[1744811079385,7.9466,125.85,125.83,0.05634002]
[1744811079581,0.05299089,125.86,125.83,0.05634002]
[1744811079980,0.05299089,125.86,125.83,8.20814002]
[1744811080690,571.92,125.92,125.83,8.20814002]
[1744811080888,26.23310083,125.91,125.83,8.1518]
[1744811081588,0.05778701,125.88,125.86,0.05133992]
[1744811083187,0.05778701,125.88,125.86,7.99693992]
[1744811083689,0.05778701,125.88,125.86,0.05133992]
[1744811085587,8.00248701,125.88,125.86,0.05133992]
[1744811085788,0.05778701,125.88,125.86,0.05133992]
[1744811086391,0.05778701,125.88,125.86,7.99693992]
[1744811086785,0.05778701,125.88,125.86,0.05133992]
[1744811087088,0.05778701,125.88,125.87,7.9453]
[1744811087287,0.05778701,125.88,125.86,0.05133992]
[1744811087789,0.05778701,125.88,125.86,7.99693992]
[1744811088686,0.05778701,125.88,125.86,0.05133992]
[1744811089693,0.05778701,125.88,125.86,7.99723992]
[1744811091091,0.05778701,125.88,125.86,0.05133992]
[1744811091795,8.00278701,125.88,125.86,0.05133992]
[1744811093187,7.9453,125.87,125.86,0.05133992]
[1744811094294,0.05778701,125.88,125.86,0.05133992]
[1744811094690,0.05778701,125.88,125.86,7.99693992]
[1744811095090,0.05778701,125.88,125.86,0.05133992]
[1744811097696,0.05778701,125.88,125.86,7.99703992]
[1744811097898,0.05778701,125.88,125.86,0.05133992]
[1744811098298,8.00268701,125.88,125.86,0.05133992]
[1744811098897,7.9453,125.87,125.86,0.05133992]
[1744811099296,0.05778701,125.88,125.86,0.05133992]
[1744811099595,8.00268701,125.88,125.86,0.05133992]
[1744811099795,0.05778701,125.88,125.86,0.05133992]
[1744811100698,571.92,125.92,125.86,0.05133992]
[1744811101097,26.23310083,125.89,125.86,0.05133992]
[1744811101292,571.92,125.92,125.86,0.05133992]
[1744811101600,7.9437,125.9,125.86,0.05133992]
[1744811101900,0.05760188,125.89,125.86,0.05133992]
[1744811103004,7.9453,125.87,125.86,0.05133992]
[1744811103605,0.05760188,125.89,125.86,0.05133992]
[1744811104803,0.05760188,125.89,125.86,7.99703992]
[1744811105097,0.05760188,125.89,125.86,0.05133992]
[1744811105300,7.9407,125.95,125.87,16.38598641]
[1744811105496,588.52598641,125.98,125.89,16.38598641]
[1744811105697,16.38598641,125.94,125.88,4.0601]
[1744811105905,7.9447,125.88,125.83,919.44418641]
[1744811106203,16.38598641,125.92,125.84,4.0601]
[1744811106403,0.05894811,125.87,125.84,12.06274312]
[1744811106602,0.05894811,125.87,125.84,0.05554121]
[1744811106806,16.38598641,125.86,125.84,0.05554121]
[1744811107003,16.38598641,125.86,125.79,4.0349]
[1744811107201,26.26363603,125.84,125.79,4.0349]
[1744811107400,26.26363603,125.86,125.79,4.0349]
[1744811107900,26.26363603,125.86,125.79,8.095]
[1744811108105,0.05012403,125.84,125.81,0.05086071]
[1744811108306,26.31376006,125.84,125.81,0.05086071]
[1744811109804,7.9484,125.82,125.81,0.05086071]
[1744811110401,7.9481,125.83,125.81,0.05086071]
[1744811110605,0.05012403,125.84,125.81,0.05086071]
[1744811111004,26.31376006,125.84,125.81,0.05086071]
[1744811111205,26.26363603,125.82,125.75,4.0634]
[1744811111600,7.95,125.8,125.75,4.0634]
[1744811111895,26.26363603,125.84,125.75,4.0634]
[1744811112098,7.9497,125.8,125.75,4.0634]
[1744811112299,0.06034993,125.79,125.76,0.05684288]
[1744811114805,8.01104993,125.79,125.76,0.05684288]
[1744811115003,0.06034993,125.79,125.76,0.05684288]
[1744811115306,8.01074993,125.79,125.76,0.05684288]
[1744811115906,0.06034993,125.79,125.76,0.05684288]
[1744811116401,580.2476,125.84,125.78,7.951]
[1744811116804,572.3,125.84,125.75,26.26363603]
[1744811117005,7.9482,125.83,125.78,7.951]
[1744811117207,572.3,125.84,125.75,26.26363603]
[1744811117403,572.3,125.84,125.74,8.2793]
[1744811117609,7.9499,125.8,125.78,0.06108968]
[1744811117805,0.0591259,125.81,125.78,0.06108968]
[1744811118309,8.0085259,125.81,125.78,0.06108968]
[1744811118606,0.0591259,125.81,125.78,0.06108968]
[1744811120913,8.0085259,125.81,125.78,0.06108968]
[1744811121112,0.0591259,125.81,125.78,0.06108968]
[1744811122907,7.9502,125.8,125.78,0.06108968]
[1744811123112,26.32276193,125.81,125.78,0.06108968]
[1744811123515,26.26363603,125.79,125.73,362.0]
[1744811123715,26.26363603,125.77,125.68,12.2636]
[1744811124016,7.9525,125.76,125.68,12.2636]
[1744811124218,26.26363603,125.77,125.68,12.2636]
[1744811124417,7.9545,125.73,125.68,20.2206]
[1744811124623,0.05033396,125.72,125.69,0.05482029]
[1744811125108,7.9557,125.71,125.69,0.05482029]
[1744811125308,0.05033396,125.72,125.69,0.05482029]
[1744811125516,8.00553396,125.72,125.69,0.05482029]
[1744811125718,0.05033396,125.72,125.69,0.05482029]
[1744811128319,26.26363603,125.71,125.69,0.05482029]
[1744811128819,26.26363603,125.71,125.64,12.4734]
[1744811129016,26.26363603,125.71,125.64,8.3005]
[1744811129213,7.9574,125.68,125.64,8.3005]
[1744811129521,26.26363603,125.69,125.64,8.3005]
[1744811129717,0.0504276,125.68,125.65,0.05086378]
[1744811129921,26.26363603,125.67,125.61,362.0]
[1744811130116,26.26363603,125.67,125.58,4.0823]
[1744811130824,7.96,125.64,125.58,12.0455]
[1744811131019,26.26363603,125.65,125.58,4.0823]
[1744811131320,0.05383794,125.62,125.6,0.05537411]
[1744811131521,572.6,125.68,125.58,30.34593603]
[1744811132021,598.86363603,125.68,125.58,4.0823]
[1744811132521,7.9592,125.65,125.59,7.9626]
[1744811132820,0.05041759,125.64,125.62,0.05790815]
[1744811133121,8.01041759,125.64,125.62,0.05790815]
[1744811133323,0.05041759,125.64,125.62,0.05790815]
[1744811133825,26.31405362,125.64,125.62,0.05790815]
[1744811134026,26.26363603,125.62,125.56,8.107]
[1744811134324,26.26363603,125.64,125.57,7.9639]
[1744811134519,26.26363603,125.64,125.56,8.107]
[1744811134718,7.9628,125.6,125.56,8.107]
[1744811134918,26.26363603,125.64,125.56,8.107]
[1744811135117,0.05670951,125.59,125.57,0.05423671]
[1744811135317,7.9612,125.62,125.57,0.05423671]
[1744811135517,0.05010466,125.59,125.57,0.05423671]
[1744811135724,26.26363603,125.64,125.57,0.05423671]
[1744811135926,7.9615,125.62,125.57,0.05423671]
[1744811136223,26.32275317,125.62,125.57,0.05423671]
[1744811136418,7.9633,125.59,125.57,0.05423671]
[1744811136620,26.26363603,125.62,125.57,0.05423671]
[1744811136820,0.05476723,125.59,125.57,0.05423671]
[1744811139026,26.26363603,125.66,125.57,0.05423671]
[1744811139226,26.26363603,125.66,125.56,34.37063603]
[1744811139528,7.9614,125.62,125.57,7.9639]
[1744811139725,1.1108,125.67,125.56,8.107]
[1744811139726,26.26363603,125.64,125.56,8.107]
[1744811140126,8.01402295,125.61,125.59,0.05182018]
[1744811140623,7.9624,125.6,125.59,0.05182018]
[1744811141022,0.05202295,125.61,125.53,366.2288]
[1744811141328,7.9646,125.57,125.53,4.2288]
[1744811141626,7.9654,125.56,125.53,4.2288]
[1744811142322,8.02309335,125.56,125.53,4.2865498]
[1744811142628,7.9656,125.55,125.53,4.2865498]
[1744811143229,7.9662,125.54,125.53,0.0577498]
[1744811143428,26.26363603,125.54,125.46,4.3667]
[1744811143631,26.26363603,125.51,125.46,4.3667]
[1744811144527,0.05936532,125.5,125.47,0.05676349]
[1744811145627,26.26363603,125.49,125.47,0.05676349]
[1744811146033,26.26363603,125.49,125.41,8.6307]
[1744811146231,26.26363603,125.47,125.41,8.6307]
[1744811146631,7.9723,125.45,125.41,8.6307]
[1744811147131,0.05452491,125.44,125.42,0.05900947]
[1744811147933,8.02732491,125.44,125.42,0.05900947]
[1744811148128,0.05452491,125.44,125.42,0.05900947]
[1744811154328,7.9732,125.43,125.42,0.05900947]
[1744811155333,8.02742491,125.44,125.42,0.05900947]
[1744811155638,0.05452491,125.44,125.42,0.05900947]
[1744811156029,26.26363603,125.5,125.42,0.05900947]
[1744811156233,7.9716,125.46,125.38,30.70833603]
[1744811156433,26.26363603,125.5,125.42,7.9736]
[1744811156937,26.26363603,125.5,125.41,7.9741]
[1744811157136,0.0588949,125.47,125.44,0.05345142]
[1744811157435,8.0298949,125.47,125.44,0.05345142]
[1744811157841,0.0588949,125.47,125.44,0.05345142]
[1744811158544,8.0299949,125.47,125.44,0.05345142]
[1744811158941,0.0588949,125.47,125.44,0.05345142]
[1744811160944,7.9716,125.46,125.44,0.05345142]